bitfinex-derivatives/quotes_BTCF0:USTF0_20241022
["timestamp","ask_amount","ask_price","bid_price","bid_amount"]
[1729623370066,0.074185,67429.0,67428.0,0.037]
[1729623370364,0.074186,67428.0,67427.0,0.00222439]
[1729623370557,0.111086,67428.0,67427.0,0.00222439]
[1729623371469,0.111086,67428.0,67427.0,0.0762034]
[1729623371763,0.111086,67428.0,67427.0,0.00222439]
[1729623371958,0.111086,67428.0,67427.0,0.07620299]
[1729623372161,0.1469,67428.0,67426.0,0.0739786]
[1729623372357,0.1469,67428.0,67421.0,0.07175534]
[1729623372358,0.5808,67427.0,67421.0,0.07175534]
[1729623372556,0.074194,67421.0,67420.0,0.07175534]
[1729623372757,0.074199,67417.0,67415.0,0.074199]
[1729623372959,0.184199,67416.0,67415.0,0.074199]
[1729623374360,0.184199,67416.0,67415.0,0.076199]
[1729623375871,0.184199,67416.0,67415.0,0.079199]
[1729623376464,0.184199,67416.0,67415.0,0.005]
[1729623376965,0.20848663,67416.0,67415.0,0.005]
[1729623380663,0.20848663,67416.0,67415.0,0.003]
[1729623382672,0.0742,67415.0,67414.0,0.074201]
[1729623385380,0.13428763,67416.0,67412.0,0.0355]
[1729623385669,0.184203,67413.0,67412.0,0.109704]
[1729623390470,0.20892113,67413.0,67412.0,0.109704]
[1729623397281,0.20892113,67413.0,67412.0,0.19437892]
[1729623398582,0.20892113,67413.0,67412.0,0.28295761]
[1729623398977,0.20892113,67413.0,67412.0,0.19437892]
[1729623401289,0.20892113,67413.0,67412.0,0.29558462]
[1729623401788,0.20892113,67413.0,67412.0,0.29581076]
[1729623404587,0.20892113,67413.0,67412.0,0.109704]
[1729623405283,0.20892113,67413.0,67412.0,0.470504]
[1729623405581,0.09892113,67413.0,67412.0,0.470504]
[1729623408581,0.09892113,67413.0,67412.0,0.109704]
[1729623411690,0.09892113,67413.0,67412.0,0.29596184]
[1729623419599,0.09892113,67413.0,67412.0,0.109704]
[1729623425303,0.09892113,67413.0,67412.0,0.470504]
[1729623426607,0.09892113,67413.0,67412.0,0.65663699]
[1729623427503,0.09892113,67413.0,67412.0,0.29583699]
[1729623429105,0.09892113,67413.0,67412.0,0.29582273]
[1729623430708,0.09892113,67413.0,67412.0,0.65662273]
[1729623431800,0.56972113,67413.0,67412.0,0.18611873]
[1729623432102,0.60412113,67413.0,67412.0,0.18611873]
[1729623433302,0.60412113,67413.0,67412.0,0.08490966]
[1729623433708,0.60412113,67413.0,67412.0,0.18658088]
[1729623433899,0.60412113,67413.0,67412.0,0.08490966]
[1729623434318,0.60412113,67413.0,67412.0,0.07416771]
[1729623434516,0.074205,67411.0,67405.0,0.0890372]
[1729623434711,0.074209,67407.0,67406.0,0.08540319]
[1729623435115,0.074209,67407.0,67406.0,0.17444039]
[1729623435412,0.074209,67407.0,67406.0,0.08540319]
[1729623438519,0.074209,67407.0,67406.0,0.08537962]
[1729623441718,0.074209,67407.0,67403.0,0.04444993]
[1729623441915,0.11,67404.0,67402.0,0.04444993]
[1729623442120,0.184214,67403.0,67402.0,0.04444993]
[1729623442619,0.184214,67403.0,67401.0,0.074215]
[1729623442620,0.074215,67402.0,67401.0,0.074215]
[1729623443320,0.074215,67402.0,67401.0,0.11865945]
[1729623443522,0.074215,67402.0,67401.0,0.074215]
[1729623446721,0.074215,67402.0,67401.0,0.11865747]
[1729623446924,0.074215,67402.0,67401.0,0.074215]
[1729623447228,0.074215,67402.0,67401.0,0.11865449]
[1729623447724,0.074215,67402.0,67401.0,0.11865423]
[1729623447916,0.074215,67402.0,67401.0,0.074215]
[1729623448123,0.074215,67402.0,67401.0,0.184215]
[1729623448925,0.184215,67402.0,67401.0,0.184215]
[1729623449125,0.20848412,67402.0,67401.0,0.184215]
[1729623449832,0.20848412,67402.0,67401.0,0.26952503]
[1729623450229,0.20848412,67402.0,67401.0,0.35856223]
[1729623450937,0.20848412,67402.0,67401.0,0.26952503]
[1729623451135,0.09848412,67402.0,67401.0,0.184215]
[1729623452139,0.09848412,67402.0,67401.0,0.3583366]
[1729623452335,0.20848412,67402.0,67401.0,0.2841216]
[1729623452531,0.20848412,67402.0,67401.0,0.1741216]
[1729623452738,0.20848412,67402.0,67401.0,0.085236]
[1729623452931,0.20848412,67402.0,67401.0,0.1595538]
[1729623454834,0.20848412,67402.0,67401.0,0.2484394]
[1729623455340,0.20848412,67402.0,67401.0,0.1595538]
[1729623455839,0.20848412,67402.0,67401.0,0.0853378]
[1729623456334,0.56928412,67402.0,67401.0,0.0853378]
[1729623457129,0.074219,67398.0,67397.0,0.0365]
[1729623457333,0.074219,67398.0,67397.0,0.11072]
[1729623458635,0.074219,67398.0,67397.0,0.0365]
[1729623458835,0.22,67399.0,67396.0,0.00222562]
[1729623458836,0.07422,67397.0,67396.0,0.04670818]
[1729623459236,0.07422,67397.0,67396.0,0.00222562]
[1729623459842,0.07422,67397.0,67392.0,0.05929308]
[1729623460036,0.074227,67391.0,67390.0,0.074228]
[1729623460631,0.074227,67391.0,67390.0,0.08629801]
[1729623460845,0.074227,67391.0,67390.0,0.074228]
[1729623461737,0.074227,67391.0,67390.0,0.083228]
[1729623461942,0.074227,67391.0,67390.0,0.009]
[1729623462445,0.074227,67391.0,67390.0,0.05350089]
[1729623463242,0.09827794,67391.0,67390.0,0.009]
[1729623464446,0.09827794,67391.0,67390.0,0.192228]
[1729623464642,0.3608,67409.0,67391.0,0.074227]
[1729623464643,0.07422,67398.0,67391.0,0.074227]
[1729623464945,0.07422,67398.0,67397.0,0.184219]
[1729623465149,0.07422,67398.0,67397.0,0.26979036]
[1729623465535,0.07422,67398.0,67397.0,0.15979036]
[1729623466439,0.07422,67398.0,67397.0,0.26979036]
[1729623466945,0.07422,67398.0,67397.0,0.37176253]
[1729623467135,0.07422,67398.0,67397.0,0.15979036]
[1729623468040,0.07422,67398.0,67397.0,0.52059036]
[1729623468243,0.02489822,67401.0,67400.0,0.074217]
[1729623468443,0.074213,67404.0,67403.0,0.074214]
[1729623468747,0.074213,67404.0,67403.0,0.73242677]
[1729623471548,0.074213,67404.0,67403.0,0.545014]
[1729623471735,0.074213,67404.0,67403.0,0.63006918]
[1729623472133,0.074213,67404.0,67403.0,0.545014]
[1729623473750,0.074213,67404.0,67403.0,0.184214]
[1729623473955,0.074213,67404.0,67403.0,0.545014]
[1729623475845,0.02410253,67405.0,67404.0,0.074212]
[1729623476048,0.074208,67408.0,67407.0,0.074209]
[1729623476346,0.108305,67411.0,67410.0,0.074206]
[1729623476552,0.108305,67411.0,67410.0,0.24346291]
[1729623477447,0.108305,67411.0,67410.0,0.184206]
[1729623477949,0.108305,67411.0,67410.0,0.24346291]
[1729623478350,0.108305,67411.0,67410.0,0.184206]
[1729623478856,0.218305,67411.0,67410.0,0.074206]
[1729623479058,0.074206,67410.0,67409.0,0.05925691]
[1729623479248,0.074209,67407.0,67406.0,0.074209]
[1729623479556,0.184209,67407.0,67406.0,0.074209]
[1729623479950,0.184209,67407.0,67406.0,0.05925691]
[1729623480158,0.184209,67407.0,67406.0,0.08480038]
[1729623481752,0.184209,67407.0,67406.0,0.15901038]
[1729623481952,0.074209,67407.0,67406.0,0.15901038]
[1729623483358,0.074209,67407.0,67406.0,0.24793766]
[1729623483657,0.074209,67407.0,67406.0,0.15901038]
[1729623489156,0.074209,67407.0,67406.0,0.07421]
[1729623489366,0.074209,67407.0,67406.0,0.15888264]
[1729623491772,0.074208,67410.0,67409.0,0.074206]
[1729623492060,0.074208,67410.0,67409.0,0.2598043]
[1729623494170,0.074208,67410.0,67409.0,0.074206]
[1729623495272,0.46057362,67415.0,67414.0,0.074201]
[1729623495273,0.02557362,67415.0,67414.0,0.074201]
[1729623495461,0.00222558,67421.0,67420.0,0.074195]
[1729623495666,0.07747825,67421.0,67420.0,0.11]
[1729623495871,0.12785278,67421.0,67420.0,0.184195]
[1729623496061,0.00222558,67421.0,67420.0,0.184195]
[1729623496374,0.07641958,67421.0,67420.0,0.184195]
[1729623496765,0.074194,67421.0,67420.0,0.184195]
[1729623501781,0.074194,67421.0,67420.0,0.26860165]
[1729623505564,0.074194,67421.0,67420.0,0.15860165]
[1729623509776,0.074194,67421.0,67420.0,0.074195]
[1729623513582,0.074194,67421.0,67416.0,0.036]
[1729623513583,0.074196,67419.0,67417.0,0.074198]
[1729623513781,0.11,67418.0,67416.0,0.036]
[1729623513986,0.074205,67415.0,67414.0,0.074201]
[1729623514178,0.184205,67415.0,67414.0,0.074201]
[1729623515692,0.184205,67415.0,67410.0,0.00164]
[1729623515693,0.294205,67415.0,67410.0,0.00164]
[1729623515881,0.294205,67415.0,67400.0,0.07399752]
[1729623515882,0.074209,67407.0,67406.0,0.00222519]
[1729623516193,0.074217,67400.0,67399.0,0.074217]
[1729623516491,0.184217,67400.0,67399.0,0.074217]
[1729623516792,0.184217,67400.0,67399.0,0.26065321]
[1729623517179,0.184217,67400.0,67399.0,0.36441401]
[1729623517382,0.294217,67400.0,67399.0,0.18643621]
[1729623517594,0.184217,67400.0,67399.0,0.18643621]
[1729623517791,0.184217,67400.0,67399.0,0.08522326]
[1729623518690,0.20802175,67400.0,67399.0,0.08522326]
[1729623519781,0.09802175,67400.0,67399.0,0.26944126]
[1729623522292,0.09802175,67400.0,67399.0,0.19522326]
[1729623522487,0.09802175,67400.0,67399.0,0.19503668]
[1729623524184,0.02380475,67400.0,67399.0,0.26925468]
[1729623524379,0.074214,67403.0,67401.0,0.074215]
[1729623524587,0.074214,67403.0,67402.0,0.23253668]
[1729623525592,0.184214,67403.0,67402.0,0.12253668]
[1729623525793,0.184214,67403.0,67402.0,0.19647989]
[1729623526094,0.184214,67403.0,67402.0,0.12253668]
[1729623526289,0.074214,67403.0,67402.0,0.11143856]
[1729623526589,0.074214,67403.0,67402.0,0.19638134]
[1729623527191,0.074214,67403.0,67402.0,0.11143856]
[1729623527696,0.09889105,67403.0,67402.0,0.11143856]
[1729623528393,0.09889105,67403.0,67402.0,0.19638087]
[1729623528592,0.09889105,67403.0,67402.0,0.11143856]
[1729623529390,0.09889105,67403.0,67402.0,0.19635594]
[1729623529696,0.09889105,67403.0,67402.0,0.12241738]
[1729623530195,0.26889105,67403.0,67402.0,0.12241738]
[1729623531204,0.26889105,67403.0,67402.0,0.19633037]
[1729623531795,0.09889105,67403.0,67402.0,0.11141299]
[1729623531996,0.09889105,67403.0,67402.0,0.0375]
[1729623534994,0.02467705,67403.0,67402.0,0.281715]
[1729623535197,0.074212,67405.0,67402.0,0.2075]
[1729623535496,0.3608,67410.0,67402.0,0.2075]
[1729623535497,0.074209,67407.0,67406.0,0.074209]
[1729623535696,0.074209,67407.0,67406.0,0.244209]
[1729623536091,0.074209,67407.0,67406.0,0.24421]
[1729623539999,0.074209,67407.0,67406.0,0.32887947]
[1729623540793,0.074209,67407.0,67406.0,0.32883426]
[1729623541201,0.074209,67407.0,67406.0,0.41772038]
[1729623542003,0.074209,67407.0,67406.0,0.41773575]
[1729623542203,0.074209,67407.0,67406.0,0.32884963]
[1729623543596,0.074209,67407.0,67406.0,0.41767944]
[1729623544398,0.074209,67407.0,67406.0,0.32884963]
[1729623544601,0.074209,67407.0,67406.0,0.41771293]
[1729623544798,0.074209,67407.0,67406.0,0.32884963]
[1729623546406,0.3608,67410.0,67406.0,0.25463963]
[1729623546605,0.435009,67410.0,67409.0,0.074207]
[1729623546906,0.435009,67410.0,67409.0,0.15884663]
[1729623547108,0.435009,67410.0,67409.0,0.074207]
[1729623548698,0.074209,67410.0,67409.0,0.074207]
[1729623555011,0.074209,67410.0,67409.0,0.24779636]
[1729623556008,0.074209,67410.0,67409.0,0.15890887]
[1729623556212,0.074209,67410.0,67409.0,0.08470187]
[1729623556820,0.074209,67410.0,67409.0,0.18568259]
[1729623557218,0.184209,67410.0,67409.0,0.18568259]
[1729623557524,0.074209,67410.0,67409.0,0.36988959]
[1729623557720,0.05976966,67411.0,67409.0,0.29568259]
[1729623557913,0.05976966,67411.0,67410.0,0.25988859]
[1729623558927,0.07642385,67417.0,67410.0,0.29563549]
[1729623559219,0.07642385,67417.0,67416.0,0.11]
[1729623559422,0.07642385,67417.0,67416.0,0.29563549]
[1729623559619,0.07642385,67417.0,67416.0,0.36983449]
[1729623559926,0.02657768,67417.0,67416.0,0.36983449]
[1729623561017,0.02657768,67417.0,67416.0,0.31983449]
[1729623562023,0.02657768,67417.0,67416.0,0.134199]
[1729623562828,0.09854983,67417.0,67416.0,0.134199]
[1729623567326,0.20854983,67417.0,67416.0,0.134199]
[1729623568629,0.20854983,67417.0,67416.0,0.074199]
[1729623570026,0.20854983,67417.0,67416.0,0.15897804]
[1729623574129,0.20854983,67417.0,67416.0,0.08477904]
[1729623574734,0.20854983,67417.0,67416.0,0.17362347]
[1729623574934,0.20854983,67417.0,67416.0,0.08477904]
[1729623575340,0.20854983,67417.0,67416.0,0.15881484]
[1729623576039,0.20854983,67417.0,67416.0,0.0740358]
[1729623576245,0.20854983,67417.0,67408.0,0.08883288]
[1729623576540,0.074206,67410.0,67409.0,0.08511781]
[1729623576734,0.184206,67410.0,67409.0,0.08511781]
[1729623576937,0.220406,67410.0,67409.0,0.08511781]
[1729623577335,0.330406,67410.0,67409.0,0.08511781]
[1729623577640,0.330406,67410.0,67409.0,0.08527029]
[1729623579044,0.220406,67410.0,67409.0,0.08527029]
[1729623579245,0.330406,67410.0,67409.0,0.08527029]
[1729623579544,0.220406,67410.0,67409.0,0.08527029]
[1729623579740,0.330406,67410.0,67409.0,0.08527029]
[1729623579947,0.220406,67410.0,67409.0,0.08527029]
[1729623580142,0.330406,67410.0,67409.0,0.08527029]
[1729623582453,0.35509257,67410.0,67409.0,0.08528361]
[1729623583056,0.24509257,67410.0,67409.0,0.08528361]
[1729623583347,0.24509257,67410.0,67409.0,0.1592985]
[1729623583556,0.13509257,67410.0,67409.0,0.2692985]
[1729623583750,0.13509257,67410.0,67409.0,0.19528361]
[1729623583948,0.13509257,67410.0,67409.0,0.08528361]
[1729623585054,0.06088657,67410.0,67408.0,0.074207]
[1729623585355,0.074207,67409.0,67408.0,0.074207]
[1729623586555,0.02468657,67410.0,67408.0,0.0444031]
[1729623586755,0.074204,67412.0,67411.0,0.074205]
[1729623587750,0.38619058,67415.0,67409.0,0.11]
[1729623587958,0.074202,67414.0,67413.0,0.074201]
[1729623592046,0.074202,67414.0,67413.0,0.15910238]
[1729623594654,0.14837057,67414.0,67413.0,0.15910238]
[1729623595859,0.25837057,67414.0,67413.0,0.15910238]
[1729623596653,0.25837057,67414.0,67413.0,0.08490138]
[1729623599466,0.07416857,67414.0,67413.0,0.37008742]
[1729623600160,0.07416857,67414.0,67413.0,0.184203]
[1729623600466,0.14836957,67414.0,67413.0,0.184203]
[1729623600767,0.074208,67408.0,67407.0,0.0354]
[1729623600962,0.074208,67408.0,67407.0,0.109609]
[1729623602456,0.07416857,67414.0,67413.0,0.074203]
[1729623602656,0.07416857,67414.0,67413.0,0.244203]
[1729623603659,0.074194,67421.0,67420.0,0.074195]
[1729623603970,0.074194,67421.0,67420.0,0.244195]
[1729623605167,0.074194,67421.0,67420.0,0.074195]
[1729623607159,0.074194,67421.0,67420.0,0.15841539]
[1729623609471,0.074194,67421.0,67420.0,0.24726555]
[1729623610168,0.074194,67421.0,67420.0,0.08432986]
[1729623610357,0.110494,67421.0,67420.0,0.08432986]
[1729623611971,0.145794,67421.0,67420.0,0.15831228]
[1729623612165,0.145794,67421.0,67420.0,0.07398242]
[1729623612969,0.145794,67421.0,67420.0,0.08466012]
[1729623613174,0.145794,67421.0,67420.0,0.15865773]
[1729623613368,0.145794,67421.0,67420.0,0.08466012]
[1729623613968,0.145794,67421.0,67420.0,0.08458555]
[1729623618883,0.590754,67421.0,67419.0,0.07406282]
[1729623619079,0.590754,67421.0,67402.0,0.36244]
[1729623619080,0.074196,67419.0,67418.0,0.07406282]
[1729623619379,0.244196,67419.0,67418.0,0.07406282]
[1729623620175,0.689196,67419.0,67418.0,0.07406282]
[1729623620886,0.074197,67418.0,67417.0,0.07406282]
[1729623621077,0.244197,67418.0,67417.0,0.07406282]
[1729623621586,0.074201,67414.0,67413.0,0.08874069]
[1729623621777,0.074206,67410.0,67407.0,0.074209]
[1729623621977,0.244206,67410.0,67408.0,0.17443191]
[1729623622283,0.244206,67410.0,67408.0,0.074208]
[1729623624981,0.244206,67410.0,67408.0,0.11862667]
[1729623625185,0.244206,67410.0,67408.0,0.074208]
[1729623625186,0.074207,67409.0,67408.0,0.074208]
[1729623625580,0.07421,67406.0,67405.0,0.05922489]
[1729623625780,0.074211,67405.0,67404.0,0.13343689]
[1729623628280,0.074211,67405.0,67404.0,0.07885336]
[1729623628479,0.074211,67405.0,67404.0,0.074212]
[1729623629083,0.074211,67405.0,67404.0,0.13343226]
[1729623629288,0.074211,67405.0,67404.0,0.17415152]
[1729623629886,0.074211,67405.0,67404.0,0.29021992]
[1729623630082,0.074211,67405.0,67404.0,0.27791232]
[1729623630284,0.074211,67405.0,67404.0,0.39402255]
[1729623631287,0.074211,67405.0,67404.0,0.17415152]
[1729623632289,0.074211,67405.0,67404.0,0.40027458]
[1729623632685,0.074211,67405.0,67404.0,0.40036873]
[1729623633887,0.074211,67405.0,67404.0,0.48428103]
[1729623635492,0.02484308,67410.0,67404.0,0.48428103]
[1729623635794,0.074206,67410.0,67409.0,0.184207]
[1729623636090,0.074206,67410.0,67409.0,0.36814338]
[1729623637286,0.074206,67410.0,67409.0,0.34237045]
[1729623637488,0.074206,67410.0,67409.0,0.26832308]
[1729623637882,0.074197,67418.0,67415.0,0.0742]
[1729623638095,0.3971,67421.0,67420.0,0.074195]
[1729623638096,0.3608,67421.0,67420.0,0.074195]
[1729623638390,0.3608,67421.0,67420.0,0.184195]
[1729623639282,0.00222544,67424.0,67423.0,0.074192]
[1729623639487,0.00222544,67424.0,67423.0,0.184192]
[1729623640288,0.00222544,67424.0,67423.0,0.244192]
[1729623641395,0.00222544,67424.0,67423.0,0.15763852]
[1729623641784,0.00222544,67424.0,67423.0,0.15754488]
[1729623642191,0.00222544,67424.0,67423.0,0.23151065]
[1729623642389,0.00222544,67424.0,67423.0,0.60250488]
[1729623642594,0.3608,67433.0,67432.0,0.074182]
[1729623642787,0.3608,67433.0,67432.0,0.244182]
[1729623642988,0.3608,67433.0,67432.0,0.30334911]
[1729623643201,0.3608,67433.0,67432.0,0.244182]
[1729623643597,0.3852158,67433.0,67432.0,0.244182]
[1729623644096,0.3852158,67433.0,67430.0,0.05916711]
[1729623644396,0.074183,67431.0,67430.0,0.07395889]
[1729623644703,0.074183,67431.0,67430.0,0.14814289]
[1729623645098,0.074183,67431.0,67430.0,0.074184]
[1729623645699,0.5560158,67433.0,67431.0,0.074182]
[1729623645700,0.3860158,67433.0,67431.0,0.074182]
[1729623646005,0.074182,67432.0,67431.0,0.074182]
[1729623648203,0.074182,67432.0,67429.0,0.24395889]
[1729623648204,0.074184,67431.0,67429.0,0.17]
[1729623648396,0.3852158,67433.0,67429.0,0.17]
[1729623648598,0.074184,67430.0,67429.0,0.17]
[1729623650203,0.074184,67430.0,67429.0,0.244185]
[1729623657007,0.074187,67427.0,67426.0,0.17]
[1729623657207,0.074187,67427.0,67426.0,0.244188]
[1729623659314,0.074187,67427.0,67426.0,0.32732889]
[1729623659500,0.074187,67427.0,67426.0,0.41618573]
[1729623659702,0.434987,67427.0,67426.0,0.17199773]
[1729623659901,0.434987,67427.0,67426.0,0.08314089]
[1729623660215,0.074187,67427.0,67426.0,0.08314089]
[1729623660511,0.07419,67424.0,67423.0,0.09891991]
[1729623660713,0.07419,67424.0,67423.0,0.1823432]
[1729623661209,0.41419,67424.0,67423.0,0.08342329]
[1729623661409,0.41419,67424.0,67422.0,0.07383549]
[1729623661410,0.074192,67423.0,67422.0,0.07383549]
[1729623661719,0.074194,67421.0,67420.0,0.07383549]
[1729623662009,0.074195,67420.0,67419.0,0.01913549]
[1729623662211,0.641395,67420.0,67419.0,0.0837091]
[1729623662512,0.641395,67420.0,67419.0,0.05909874]
[1729623662714,0.074196,67419.0,67418.0,0.05909874]
[1729623663014,0.244196,67419.0,67418.0,0.05909874]
[1729623663211,0.074205,67411.0,67409.0,0.16306384]
[1729623663413,0.244205,67411.0,67410.0,0.08350926]
[1729623663712,0.244205,67411.0,67410.0,0.08363846]
[1729623664104,0.244205,67411.0,67410.0,0.1724953]
[1729623664304,0.244205,67411.0,67410.0,0.08363846]
[1729623664607,0.244205,67411.0,67410.0,0.1724953]
[1729623665213,0.244205,67411.0,67410.0,0.15784446]
[1729623665515,0.244205,67411.0,67410.0,0.24651586]
[1729623666108,0.244205,67411.0,67410.0,0.15784446]
[1729623666409,0.244205,67411.0,67410.0,0.2465253]
[1729623667112,0.244205,67411.0,67410.0,0.15784446]
[1729623668116,0.074205,67411.0,67410.0,0.15784446]
[1729623668507,0.09828163,67411.0,67410.0,0.32784446]
[1729623668714,0.074205,67411.0,67410.0,0.32784446]
[1729623668912,0.074185,67429.0,67415.0,0.0742]
[1729623668913,0.074199,67416.0,67415.0,0.0742]
[1729623669215,0.36156,67420.0,67415.0,0.0742]
[1729623669216,0.36164,67420.0,67419.0,0.074196]
[1729623669411,0.074191,67424.0,67423.0,0.074192]
[1729623669609,0.074191,67424.0,67423.0,0.41646926]
[1729623670018,0.074191,67424.0,67423.0,0.32783046]
[1729623671216,0.02432146,67426.0,67424.0,0.07419]
[1729623671408,0.02432146,67426.0,67424.0,0.15782846]
[1729623671720,0.07641429,67425.0,67424.0,0.15782846]
[1729623672013,0.07641429,67425.0,67424.0,0.08363846]
[1729623672315,0.07641429,67425.0,67417.0,0.0886388]
[1729623672316,0.074197,67418.0,67417.0,0.0886388]
[1729623672520,0.074197,67418.0,67417.0,0.08333292]
[1729623672707,0.17,67420.0,67416.0,0.4494388]
[1729623672913,0.074197,67418.0,67417.0,0.08338695]
[1729623674510,0.074198,67417.0,67416.0,0.074199]
[1729623675112,0.244198,67417.0,67416.0,0.074199]
[1729623675415,0.074198,67417.0,67416.0,0.074199]
[1729623676115,0.074198,67417.0,67416.0,0.244199]
[1729623676928,0.3608,67422.0,67421.0,0.074194]
[1729623676929,0.434994,67422.0,67421.0,0.074194]
[1729623682614,0.434994,67422.0,67421.0,0.15750119]
[1729623688116,0.434994,67422.0,67421.0,0.24613999]
[1729623688312,0.074194,67422.0,67421.0,0.15750119]
[1729623688519,0.02432146,67426.0,67421.0,0.08330719]
[1729623688817,0.07419,67425.0,67424.0,0.074189]
[1729623689118,0.07419,67425.0,67424.0,0.25662019]
[1729623689518,0.07419,67425.0,67424.0,0.074189]
[1729623690028,0.07419,67424.0,67423.0,0.036]
[1729623692128,0.07419,67424.0,67423.0,0.110192]
[1729623694823,0.07419,67424.0,67423.0,0.036]
[1729623695822,0.43499,67424.0,67423.0,0.036]
[1729623697625,0.07419,67424.0,67423.0,0.21864127]
[1729623698334,0.18419,67424.0,67423.0,0.21864127]
[1729623699034,0.18419,67424.0,67423.0,0.2082187]
[1729623701638,0.18419,67424.0,67423.0,0.20823192]
[1729623702429,0.18419,67424.0,67423.0,0.1193232]
[1729623703635,0.18419,67424.0,67423.0,0.17223582]
[1729623703828,0.54499,67424.0,67423.0,0.17223582]
[1729623704930,0.54499,67424.0,67423.0,0.18269471]
[1729623705535,0.18419,67424.0,67423.0,0.18269471]
[1729623705739,0.54499,67424.0,67423.0,0.18269471]
[1729623706340,0.54499,67424.0,67423.0,0.0833232]
[1729623706529,0.54499,67424.0,67423.0,0.17226342]
[1729623706733,0.54499,67424.0,67423.0,0.0833232]
[1729623708038,0.54499,67424.0,67423.0,0.17226342]
[1729623708538,0.54499,67424.0,67423.0,0.17225769]
[1729623709535,0.43499,67424.0,67423.0,0.1933232]
[1729623709734,0.43499,67424.0,67423.0,0.1575152]
[1729623710341,0.3608,67424.0,67423.0,0.36685263]
[1729623710536,0.3608,67424.0,67423.0,0.36682805]
[1729623710840,0.3608,67424.0,67423.0,0.40202805]
[1729623711442,0.3608,67424.0,67423.0,0.53957313]
[1729623711742,0.3608,67424.0,67423.0,0.42957313]
[1729623712042,0.3608,67424.0,67423.0,0.32592805]
[1729623712542,0.3608,67424.0,67423.0,0.143292]
[1729623712940,0.4135133,67424.0,67423.0,0.143292]
[1729623713244,0.3608,67424.0,67423.0,0.143292]
[1729623714444,0.43499,67424.0,67423.0,0.143292]
[1729623719344,0.09854335,67430.0,67423.0,0.143292]
[1729623719545,0.09854335,67430.0,67429.0,0.184185]
[1729623719754,0.09854335,67430.0,67429.0,0.26759469]
[1729623720045,0.09854335,67430.0,67429.0,0.36694547]
[1729623720239,0.02435835,67430.0,67429.0,0.36694547]
[1729623720440,0.074178,67436.0,67429.0,0.29276047]
[1729623720736,0.074178,67436.0,67435.0,0.16306953]
[1729623720941,0.074178,67436.0,67435.0,0.24644712]
[1729623721436,0.074178,67436.0,67435.0,0.15755459]
[1729623721647,0.074178,67436.0,67435.0,0.08337759]
[1729623722651,0.074178,67436.0,67435.0,0.08316254]
[1729623723145,0.09809496,67436.0,67435.0,0.08316254]
[1729623723548,0.09809496,67436.0,67435.0,0.19316254]
[1729623724255,0.09809496,67436.0,67435.0,0.08316254]
[1729623724454,0.09809396,67436.0,67435.0,0.0828188]
[1729623726445,0.26809396,67436.0,67435.0,0.0828188]
[1729623727746,0.074184,67431.0,67429.0,0.074185]
[1729623727949,0.05336749,67430.0,67429.0,0.074185]
[1729623728151,0.12755149,67430.0,67429.0,0.074185]
[1729623728644,0.074186,67428.0,67427.0,0.02389744]
[1729623728845,0.074186,67428.0,67426.0,0.606708]
[1729623729144,0.074178,67435.0,67426.0,0.604988]
[1729623729346,0.074187,67427.0,67426.0,0.62949645]
[1729623729647,0.074187,67427.0,67426.0,0.26869645]
[1729623731151,0.19391696,67436.0,67426.0,0.26869645]
[1729623731152,0.074185,67430.0,67426.0,0.28075989]
[1729623731455,0.074185,67430.0,67429.0,0.17]
[1729623731655,0.074185,67430.0,67429.0,0.244185]
[1729623731854,0.12762685,67430.0,67429.0,0.244185]
[1729623732054,0.074185,67430.0,67429.0,0.244185]
[1729623733864,0.12767797,67430.0,67429.0,0.244185]
[1729623734861,0.074185,67430.0,67429.0,0.42526114]
[1729623735852,0.074185,67430.0,67429.0,0.18107614]
[1729623736056,0.244185,67430.0,67429.0,0.08261108]
[1729623736251,0.359665,67430.0,67429.0,0.08261108]
[1729623736566,0.074186,67428.0,67427.0,0.07396192]
[1729623736759,0.074187,67427.0,67426.0,0.07396192]
[1729623736953,0.244187,67427.0,67426.0,0.15720814]
[1729623737361,0.244187,67427.0,67426.0,0.15722401]
[1729623740361,0.244187,67427.0,67426.0,0.07397779]
[1729623740557,0.689107,67427.0,67425.0,0.07397779]
[1729623740772,0.61496,67426.0,67412.0,0.0887901]
[1729623741073,0.074192,67423.0,67422.0,0.04440587]
[1729623741268,0.7216,67423.0,67420.0,0.04440587]
[1729623741473,0.074193,67422.0,67421.0,0.04440587]
[1729623741971,0.689153,67422.0,67421.0,0.04440587]
[1729623742175,0.73044,67422.0,67413.0,0.074202]
[1729623742473,0.074201,67414.0,67413.0,0.074202]
[1729623744781,0.3608,67417.0,67413.0,0.17]
[1729623744975,0.3608,67417.0,67414.0,0.07634139]
[1729623745172,0.3608,67417.0,67416.0,0.074199]
[1729623746277,0.434998,67417.0,67416.0,0.074199]
[1729623748580,0.3608,67417.0,67416.0,0.074199]
[1729623748783,0.3083,67417.0,67416.0,0.074199]
[1729623748982,0.074196,67419.0,67418.0,0.074197]
[1729623753089,0.0742,67415.0,67414.0,0.106201]
[1729623753284,0.0742,67415.0,67414.0,0.18889308]
[1729623753487,0.0742,67415.0,67414.0,0.032]
[1729623753697,0.0742,67415.0,67409.0,0.074207]
[1729623753885,0.074206,67410.0,67409.0,0.074207]
[1729623754084,0.074206,67410.0,67409.0,0.15707698]
[1729623755695,0.074206,67410.0,67409.0,0.15693415]
[1729623758591,0.074206,67410.0,67409.0,0.24574989]
[1729623758798,0.074206,67410.0,67409.0,0.15693415]
[1729623759398,0.074206,67410.0,67409.0,0.24574989]
[1729623761300,0.074206,67410.0,67409.0,0.15693415]
[1729623761502,0.074206,67410.0,67409.0,0.24574989]
[1729623761692,0.074206,67410.0,67409.0,0.32693415]
[1729623761895,0.074206,67410.0,67409.0,0.41574989]
[1729623762098,0.074206,67410.0,67409.0,0.15693415]
[1729623762492,0.074206,67410.0,67409.0,0.24574989]
[1729623763402,0.074206,67410.0,67409.0,0.15693415]
[1729623764699,0.074206,67410.0,67409.0,0.24575117]
[1729623765092,0.074206,67410.0,67409.0,0.24580628]
[1729623765904,0.074206,67410.0,67409.0,0.15698926]
[1729623766400,0.074206,67410.0,67409.0,0.24580628]
[1729623766595,0.074206,67410.0,67409.0,0.15698926]